fUSD/lending_fUSD_20250507
["ID","MTS","AMOUNT","RATE_DAILY","PERIOD"]
[360169860,1746589055359,450.0,0.0003,30]
[360169861,1746589055866,160.0,0.0003,32]
[360169862,1746589089811,150.0,0.0003,30]
[360169863,1746589095448,275.11180104,0.0003,30]
[360169864,1746589112035,3916.25095348,0.00019468,2]
[360169865,1746589122677,1000.0,0.00018635,2]
[360169866,1746589123666,300.0,0.0003,30]
[360169867,1746589151673,150.0,0.0003,30]
[360169868,1746589155296,150.0,0.0003,30]
[360169872,1746589271903,150.0,0.0003,30]
[360169873,1746589281014,150.0,0.0003,30]
[360169874,1746589335053,150.0,0.0003,30]
[360169875,1746589337300,500.0,0.0003,30]
[360169876,1746589339117,671.0,0.0003,30]
[360169877,1746589340350,160.0,0.0003,32]
[360169886,1746589381176,640.14772353,0.000195,2]
[360169887,1746589505650,150.0,0.0003,30]
[360169888,1746589547276,200.0,0.00018636,2]
[360169889,1746589568488,500.0,0.0003,30]
[360169890,1746589572069,228.9502827,0.0003,30]
[360169891,1746589627414,4535.48065041,0.00019467,2]
[360169892,1746589635036,300.0,0.000195,7]
[360169893,1746589641912,160.0,0.0003,32]
[360169898,1746589692932,1000.0,0.0003,30]
[360169899,1746589696950,150.0,0.0003,30]
[360169900,1746589698717,500.0,0.0003,30]
[360169901,1746589702570,150.0,0.0003,30]
[360169902,1746589704062,1000.0,0.0003,30]
[360169903,1746589717167,675.77324445,0.0003,30]
[360169904,1746589739170,432.21872262,0.0003,30]
[360169905,1746589799024,539.61,0.00016703,2]
[360169906,1746589799246,539.61,0.00018967,2]
[360169907,1746589803767,150.0,0.0003,30]
[360169908,1746589809581,150.0,0.0003,30]
[360169909,1746589818541,489.46084748,0.00019311,2]
[360169912,1746589831571,-837.41728281,0.00019515,2]
[360169913,1746589831885,-2051.0980977,0.00019515,2]
[360169917,1746589837683,-1646.9652699,0.00019515,2]
[360169918,1746589837697,-250.0,0.00019518,2]
[360169919,1746589837706,-151.0,0.0001952,2]
[360169920,1746589837715,-216.88634069,0.00019542,2]
[360169921,1746589837725,-1200.0,0.00019542,2]
[360169922,1746589837735,-300.0,0.00019542,2]
[360169923,1746589837745,-5501.89160628,0.00019543,2]
[360169924,1746589837754,-177.69379828,0.00019547,2]
[360169925,1746589837764,-330.1175,0.00019547,2]
[360169926,1746589837775,-151.0,0.00019555,2]
[360169927,1746589837784,-151.0,0.00019555,2]
[360169928,1746589837794,-156.66233414,0.00019555,2]
[360169929,1746589837803,-151.0,0.00019555,2]
[360169930,1746589837813,-207.4,0.00019555,2]
[360169931,1746589837822,-125.57986801,0.00019555,2]
[360169932,1746589837834,-543.07198956,0.00019555,2]
[360169933,1746589837844,-3115.12801048,0.00019563,2]
[360169934,1746589837866,-754.94554677,0.00019563,2]
[360169935,1746589837884,-665.40709316,0.00019563,2]
[360169936,1746589837894,-236.356988,0.00019565,2]
[360169937,1746589837904,-500.0,0.00019566,2]
[360169938,1746589837913,-500.0,0.00019566,2]
[360169939,1746589837923,-500.0,0.00019566,2]
[360169940,1746589837933,-500.0,0.00019566,2]
[360169941,1746589837943,-500.0,0.00019566,2]
[360169942,1746589837952,-500.0,0.00019566,2]
[360169943,1746589837961,-500.0,0.00019566,2]
[360169944,1746589837970,-418.59335468,0.00019566,2]
[360169945,1746589837979,-500.0,0.00019566,2]
[360169946,1746589837989,-500.0,0.00019566,2]
[360169947,1746589837999,-500.0,0.00019566,2]
[360169948,1746589838008,-500.0,0.00019566,2]
[360169949,1746589838018,-500.0,0.00019566,2]
[360169950,1746589838028,-500.0,0.00019566,2]
[360169951,1746589838037,-500.0,0.00019566,2]
[360169952,1746589838047,-500.0,0.00019566,2]
[360169953,1746589838057,-500.0,0.00019566,2]
[360169954,1746589838067,-500.0,0.00019566,2]
[360169955,1746589838079,-500.0,0.00019566,2]
[360169956,1746589838088,-500.0,0.00019566,2]
[360169957,1746589838098,-500.0,0.00019566,2]
[360169958,1746589838107,-500.0,0.00019566,2]
[360169959,1746589838116,-462.30135774,0.00019567,2]
[360169960,1746589838126,-227.88450218,0.00019567,2]
[360169961,1746589838135,-470.0,0.00019567,2]
[360169962,1746589838144,-520.12605075,0.00019567,2]
[360169963,1746589838154,-450.0,0.00019567,2]
[360169964,1746589838163,-450.0,0.00019567,2]
[360169965,1746589838173,-450.0,0.00019567,2]
[360169966,1746589838182,-371.40428258,0.00019567,2]
[360169968,1746589838191,-450.0,0.00019567,2]
[360169971,1746589838201,-161.89754025,0.00019567,2]
[360169976,1746589838226,-288.10245975,0.00019567,2]
[360169977,1746589838235,-450.0,0.00019567,2]
[360169978,1746589838244,-450.0,0.00019567,2]
[360169979,1746589838254,-412.83966756,0.00019567,2]
[360169981,1746589838271,-0.14143377,0.00019567,2]
[360169982,1746589838280,-450.0,0.00019567,2]
[360169983,1746589838290,-450.0,0.00019567,2]
[360169984,1746589838299,-547.56645627,0.00019567,2]
[360169985,1746589838309,-466.48366416,0.00019567,2]
[360169986,1746589838319,-450.0,0.00019567,2]
[360169987,1746589838328,-470.0,0.00019567,2]
[360169988,1746589838337,-450.0,0.00019567,2]
[360169989,1746589838346,-533.22191568,0.00019567,2]
[360169990,1746589838357,-450.0,0.00019567,2]
[360169991,1746589838367,-450.0,0.00019567,2]
[360169992,1746589838377,-450.0,0.00019567,2]
[360169993,1746589838386,-505.22736928,0.00019567,2]
[360169994,1746589838396,-457.23916084,0.00019567,2]
[360169995,1746589838407,-61.23174177,0.00019567,2]
[360169996,1746589838417,-464.03763706,0.00019567,2]
[360169997,1746589838427,-363.63062117,0.00019567,2]
[360169998,1746589839769,-86.36937883,0.00019567,2]
[360169999,1746589839779,-470.0,0.00019567,2]
[360170000,1746589839789,-461.33789752,0.00019567,2]
[360170001,1746589839798,-550.89699471,0.00019567,2]
[360170002,1746589839807,-450.0,0.00019567,2]
[360170003,1746589839816,-450.0,0.00019567,2]
[360170004,1746589839825,-450.0,0.00019567,2]
[360170005,1746589839834,-450.0,0.00019567,2]
[360170006,1746589839843,-523.94287964,0.00019567,2]
[360170007,1746589839852,-450.0,0.00019567,2]
[360170008,1746589839861,-456.07764496,0.00019567,2]
[360170009,1746589839871,-474.75096554,0.00019567,2]
[360170010,1746589839880,-412.41337402,0.00019567,2]
[360170011,1746589839889,-456.34125717,0.00019567,2]
[360170012,1746589839899,-518.09303996,0.00019567,2]
[360170013,1746589839908,-502.30998323,0.00019567,2]
[360170014,1746589839917,-470.0,0.00019567,2]
[360170015,1746589839926,-450.0,0.00019567,2]
[360170016,1746589839935,-450.0,0.00019567,2]
[360170017,1746589839944,-172.48773625,0.00019567,2]
[360170018,1746589839954,-450.0,0.00019567,2]
[360170019,1746589839963,-478.70079423,0.00019567,2]
[360170020,1746589839972,-486.46,0.00019567,2]
[360170021,1746589839981,-450.0,0.00019567,2]
[360170022,1746589839990,-450.0,0.00019567,2]
[360170023,1746589839999,-450.0,0.00019567,2]
[360170024,1746589840008,-450.0,0.00019567,2]
[360170025,1746589840017,-450.0,0.00019567,2]
[360170026,1746589840026,-470.0,0.00019567,2]
[360170027,1746589840035,-257.87872418,0.00019567,2]
[360170028,1746589840044,-422.52430241,0.00019567,2]
[360170029,1746589840053,-504.08818385,0.00019567,2]
[360170030,1746589840062,-470.0,0.00019567,2]
[360170031,1746589840071,-450.0,0.00019567,2]
[360170032,1746589840080,-470.0,0.00019567,2]
[360170033,1746589840089,-410.33590928,0.00019567,2]
[360170034,1746589840098,-470.0,0.00019567,2]
[360170035,1746589840107,-470.0,0.00019567,2]
[360170036,1746589840116,-450.0,0.00019567,2]
[360170037,1746589840125,-450.0,0.00019567,2]
[360170038,1746589840134,-470.0,0.00019567,2]
[360170039,1746589840143,-450.0,0.00019567,2]
[360170040,1746589840153,-450.0,0.00019567,2]
[360170041,1746589840162,-450.0,0.00019567,2]
[360170042,1746589840171,-403.02036585,0.00019567,2]
[360170043,1746589840180,-450.0,0.00019567,2]
[360170044,1746589840189,-450.0,0.00019567,2]
[360170045,1746589840198,-356.5536904,0.00019567,2]
[360170046,1746589840207,-461.38929947,0.00019567,2]
[360170047,1746589840216,-450.0,0.00019567,2]
[360170048,1746589840225,-450.0,0.00019567,2]
[360170049,1746589840234,-459.93570431,0.00019567,2]
[360170050,1746589840243,-300.02708878,0.00019567,2]
[360170051,1746589840252,-455.26516678,0.00019567,2]
[360170052,1746589840261,-524.84517483,0.00019567,2]
[360170053,1746589840271,-450.0,0.00019567,2]
[360170054,1746589840280,-450.0,0.00019567,2]
[360170055,1746589840289,-455.4704802,0.00019567,2]
[360170056,1746589840298,-483.84421354,0.00019567,2]
[360170057,1746589840306,-450.0,0.00019567,2]
[360170058,1746589840315,-470.0,0.00019567,2]
[360170059,1746589840325,-470.0,0.00019567,2]
[360170060,1746589840334,-458.87139797,0.00019567,2]
[360170061,1746589840343,-464.77769941,0.00019567,2]
[360170062,1746589840352,-450.0,0.00019567,2]
[360170063,1746589840361,-450.0,0.00019567,2]
[360170064,1746589840370,-484.08393194,0.00019567,2]
[360170065,1746589840379,-463.62010244,0.00019567,2]
[360170066,1746589840388,-499.6749523,0.00019567,2]
[360170067,1746589840397,-480.96266995,0.00019567,2]
[360170068,1746589840406,-450.0,0.00019567,2]
[360170069,1746589840415,-450.0,0.00019567,2]
[360170070,1746589840423,-475.8690853,0.00019567,2]
[360170071,1746589840432,-339.62042888,0.00019567,2]
[360170072,1746589840441,-1862.15,0.00019567,2]
[360170073,1746589840451,-450.0,0.00019567,2]
[360170074,1746589840463,-450.0,0.00019567,2]
[360170075,1746589840472,-493.46568057,0.00019567,2]
[360170076,1746589840481,-456.9910966,0.00019567,2]
[360170077,1746589840490,-457.1174667,0.00019567,2]
[360170078,1746589840499,-466.65440816,0.00019567,2]
[360170079,1746589840508,-522.9665323,0.00019567,2]
[360170080,1746589840517,-450.0,0.00019567,2]
[360170081,1746589840526,-479.87094506,0.00019567,2]
[360170082,1746589840535,-450.0,0.00019567,2]
[360170083,1746589840544,-450.0,0.00019567,2]
[360170084,1746589840553,-475.59490323,0.00019567,2]
[360170085,1746589840563,-263.58375394,0.00019567,2]
[360170086,1746589840572,-450.0,0.00019567,2]
[360170087,1746589840581,-524.92792771,0.00019567,2]
[360170088,1746589840591,-487.55556937,0.00019567,2]
[360170089,1746589840600,-450.0,0.00019567,2]
[360170090,1746589840610,-639.98049471,0.00019567,2]
[360170091,1746589840619,-509.82155977,0.00019567,2]
[360170092,1746589840629,-408.33040752,0.00019567,2]
[360170093,1746589840638,-465.34252258,0.00019567,2]
[360170094,1746589840647,-536.46542543,0.00019567,2]
[360170095,1746589840844,-450.0,0.00019567,2]
[360170096,1746589840854,-450.0,0.00019567,2]
[360170097,1746589840864,-453.0546469,0.00019567,2]
[360170098,1746589840873,-470.0,0.00019567,2]
[360170099,1746589840882,-470.0,0.00019567,2]
[360170100,1746589840892,-476.49026415,0.00019567,2]
[360170101,1746589840901,-593.10845015,0.00019567,2]
[360170102,1746589840910,-450.0,0.00019567,2]
[360170103,1746589840920,-470.94612008,0.00019567,2]
[360170104,1746589840929,-450.0,0.00019567,2]
[360170105,1746589840939,-582.07389186,0.00019567,2]
[360170106,1746589840948,-473.63356996,0.00019567,2]
[360170107,1746589840957,-495.90055176,0.00019567,2]
[360170108,1746589840967,-466.69798467,0.00019567,2]
[360170109,1746589840976,-450.0,0.00019567,2]
[360170110,1746589840986,-514.27578759,0.00019567,2]
[360170111,1746589840995,-511.33872761,0.00019567,2]
[360170112,1746589841004,-450.0,0.00019567,2]
[360170113,1746589841013,-507.22498297,0.00019567,2]
[360170114,1746589841023,-450.0,0.00019567,2]
[360170115,1746589841032,-450.0,0.00019567,2]
[360170116,1746589841041,-450.0,0.00019567,2]
[360170117,1746589841050,-530.87723377,0.00019567,2]
[360170118,1746589841059,-175.66804,0.00019567,2]
[360170119,1746589841070,-407.31611537,0.00019567,2]
[360170120,1746589841079,-461.80950666,0.00019567,2]
[360170121,1746589841089,-450.0,0.00019567,2]
[360170122,1746589841098,-476.14363279,0.00019567,2]
[360170123,1746589841107,-459.42813171,0.00019567,2]
[360170124,1746589841116,-459.47171882,0.00019567,2]
[360170125,1746589841125,-450.0,0.00019567,2]
[360170126,1746589841135,-381.58716468,0.00019567,2]
[360170127,1746589841144,-468.68347763,0.00019567,2]
[360170128,1746589841153,-451.49653082,0.00019567,2]
[360170129,1746589841162,-450.0,0.00019567,2]
[360170130,1746589841171,-470.66081904,0.00019567,2]
[360170131,1746589841181,-450.0,0.00019567,2]
[360170132,1746589841190,-468.19412794,0.00019567,2]
[360170133,1746589841200,-460.63358797,0.00019567,2]
[360170134,1746589841210,-450.0,0.00019567,2]
[360170135,1746589841219,-464.98628952,0.00019567,2]
[360170136,1746589841228,-492.65561781,0.00019567,2]
[360170137,1746589841238,-512.67801379,0.00019567,2]
[360170138,1746589841248,-466.70102574,0.00019567,2]
[360170139,1746589841258,-483.75776293,0.00019567,2]
[360170140,1746589841269,-450.52701144,0.00019567,2]
[360170141,1746589841279,-472.12419073,0.00019567,2]
[360170142,1746589841288,-525.30296557,0.00019567,2]
[360170143,1746589841297,-467.62524232,0.00019567,2]
[360170144,1746589841307,-411.53803373,0.00019567,2]
[360170145,1746589841316,-450.52891891,0.00019567,2]
[360170146,1746589841326,-482.57748486,0.00019567,2]
[360170147,1746589841335,-488.32508456,0.00019567,2]
[360170148,1746589841344,-459.81503688,0.00019567,2]
[360170149,1746589841354,-450.0,0.00019567,2]
[360170150,1746589841365,-500.0,0.00019567,2]
[360170151,1746589841374,-476.48084141,0.00019567,2]
[360170152,1746589841383,-490.19694008,0.00019567,2]
[360170153,1746589841392,-456.33119578,0.00019567,2]
[360170154,1746589841401,-450.0,0.00019567,2]
[360170155,1746589841412,-457.11555361,0.00019567,2]
[360170156,1746589841424,-460.26618022,0.00019567,2]
[360170157,1746589841435,-450.0,0.00019567,2]
[360170158,1746589841446,-500.0,0.00019567,2]
[360170159,1746589841458,-508.93359809,0.00019567,2]
[360170160,1746589841469,-450.0,0.00019567,2]
[360170161,1746589841478,-450.0,0.00019567,2]
[360170162,1746589841487,-450.0,0.00019567,2]
[360170163,1746589841496,-450.0,0.00019567,2]
[360170164,1746589841505,-490.84291327,0.00019567,2]
[360170165,1746589841517,-474.37250735,0.00019567,2]
[360170166,1746589841526,-450.0,0.00019567,2]
[360170167,1746589841535,-471.39779894,0.00019567,2]
[360170168,1746589841545,-450.0,0.00019567,2]
[360170169,1746589841555,-450.0,0.00019567,2]
[360170170,1746589841565,-500.22166481,0.00019567,2]
[360170171,1746589841574,-450.0,0.00019567,2]
[360170172,1746589841583,-598.96195745,0.00019567,2]
[360170173,1746589841592,-501.3447637,0.00019567,2]
[360170174,1746589841602,-450.0,0.00019567,2]
[360170175,1746589841612,-479.06017432,0.00019567,2]
[360170176,1746589841622,-544.17580214,0.00019567,2]
[360170177,1746589841631,-478.86799219,0.00019567,2]
[360170178,1746589841640,-478.51910426,0.00019567,2]
[360170179,1746589841650,-450.0,0.00019567,2]
[360170180,1746589841659,-450.0,0.00019567,2]
[360170181,1746589841669,-456.67395158,0.00019567,2]
[360170182,1746589841678,-457.85887365,0.00019567,2]
[360170183,1746589841687,-539.84188496,0.00019567,2]
[360170184,1746589841697,-490.83107313,0.00019567,2]
[360170185,1746589841710,-457.27346811,0.00019567,2]
[360170186,1746589841720,-494.30080399,0.00019567,2]
[360170187,1746589841729,-457.50504768,0.00019567,2]
[360170188,1746589841739,-477.83338011,0.00019567,2]
[360170189,1746589841750,-463.65031507,0.00019567,2]
[360170190,1746589841760,-540.08013166,0.00019567,2]
[360170191,1746589841771,-450.0,0.00019567,2]
[360170192,1746589841780,-475.40475556,0.00019567,2]
[360170193,1746589841791,-450.0,0.00019567,2]
[360170194,1746589841802,-477.94828008,0.00019567,2]
[360170195,1746589841811,-450.0,0.00019567,2]
[360170196,1746589841820,-450.0,0.00019567,2]
[360170197,1746589841829,-461.90250931,0.00019567,2]
[360170198,1746589841838,-307.170363,0.00019567,2]
[360170199,1746589841848,-474.13207966,0.00019567,2]
[360170200,1746589841858,-485.43567238,0.00019567,2]
[360170201,1746589841867,-484.93315464,0.00019567,2]
[360170202,1746589841877,-450.0,0.00019567,2]
[360170203,1746589841886,-544.72910389,0.00019567,2]
[360170204,1746589841895,-489.24466779,0.00019567,2]
[360170205,1746589841905,-514.87698704,0.00019567,2]
[360170206,1746589841915,-465.14538672,0.00019567,2]
[360170207,1746589841924,-450.0,0.00019567,2]
[360170208,1746589841934,-490.28848215,0.00019567,2]
[360170209,1746589841943,-450.0,0.00019567,2]
[360170210,1746589841952,-509.66130379,0.00019567,2]
[360170211,1746589841962,-450.0,0.00019567,2]
[360170212,1746589841971,-537.11752305,0.00019567,2]
[360170213,1746589841981,-450.0,0.00019567,2]
[360170214,1746589841990,-359.01528083,0.00019567,2]
[360170215,1746589841999,-532.60633093,0.00019567,2]
[360170216,1746589842009,-492.25949361,0.00019567,2]
[360170217,1746589842019,-450.0,0.00019567,2]
[360170218,1746589842028,-491.4153293,0.00019567,2]
[360170219,1746589842039,-514.71495816,0.00019567,2]
[360170220,1746589842048,-524.75700966,0.00019567,2]
[360170221,1746589842059,-458.71861892,0.00019567,2]
[360170222,1746589842068,-450.0,0.00019567,2]
[360170223,1746589842077,-450.0,0.00019567,2]
[360170224,1746589842087,-481.93224827,0.00019567,2]
[360170225,1746589842096,-497.37858126,0.00019567,2]
[360170226,1746589842105,-471.53586864,0.00019567,2]
[360170227,1746589842115,-450.0,0.00019567,2]
[360170228,1746589842124,-312.95295594,0.00019567,2]
[360170229,1746589842134,-199.15601685,0.00019567,2]
[360170230,1746589842143,-450.0,0.00019567,2]
[360170231,1746589842153,-450.0,0.00019567,2]
[360170232,1746589842162,-489.26918883,0.00019567,2]
[360170233,1746589842171,-486.51395152,0.00019567,2]
[360170234,1746589842180,-462.35318726,0.00019567,2]
[360170235,1746589842190,-450.0,0.00019567,2]
[360170236,1746589842200,-450.0,0.00019567,2]
[360170237,1746589842209,-515.66190258,0.00019567,2]
[360170238,1746589842220,-450.0,0.00019567,2]
[360170239,1746589842231,-594.01,0.00019567,2]
[360170240,1746589842242,-469.93466157,0.00019567,2]
[360170241,1746589842253,-452.28311947,0.00019567,2]
[360170242,1746589842263,-450.0,0.00019567,2]
[360170243,1746589842273,-450.0,0.00019567,2]
[360170244,1746589842282,-450.0,0.00019567,2]
[360170245,1746589842292,-450.0,0.00019567,2]
[360170246,1746589842301,-479.30682468,0.00019567,2]
[360170247,1746589842311,-452.96950653,0.00019567,2]
[360170248,1746589842320,-450.0,0.00019567,2]
[360170249,1746589842330,-450.0,0.00019567,2]
[360170250,1746589842339,-462.31471747,0.00019567,2]
[360170251,1746589842349,-450.0,0.00019567,2]
[360170252,1746589842358,-450.0,0.00019567,2]
[360170253,1746589842368,-473.15386913,0.00019567,2]
[360170254,1746589842377,-711.32,0.00019567,2]
[360170255,1746589842387,-450.0,0.00019567,2]
[360170256,1746589842396,-520.25443288,0.00019567,2]
[360170257,1746589842406,-450.0,0.00019567,2]
[360170259,1746589842415,-489.25122509,0.00019567,2]
[360170261,1746589842424,-450.0,0.00019567,2]
[360170262,1746589842434,-454.66421066,0.00019567,2]
[360170264,1746589842444,-469.44543255,0.00019567,2]
[360170266,1746589842453,-508.31646053,0.00019567,2]
[360170268,1746589842463,-450.0,0.00019567,2]
[360170270,1746589842472,-489.73,0.00019567,2]
[360170272,1746589842482,-294.29828647,0.00019567,2]
[360170274,1746589842491,-755.28,0.00019567,2]
[360170276,1746589842501,-450.0,0.00019567,2]
[360170278,1746589842510,-484.53953135,0.00019567,2]
[360170279,1746589842520,-450.0,0.00019567,2]
[360170280,1746589842529,-161.45171632,0.00019567,2]
[360170281,1746589842539,-470.84472613,0.00019567,2]
[360170282,1746589842548,-450.99446411,0.00019567,2]
[360170283,1746589842557,-450.0,0.00019567,2]
[360170284,1746589842567,-456.23856136,0.00019567,2]
[360170285,1746589842576,-515.56033985,0.00019567,2]
[360170286,1746589842586,-450.0,0.00019567,2]
[360170287,1746589842595,-452.41193292,0.00019567,2]
[360170290,1746589842605,-452.78487224,0.00019567,2]
[360170292,1746589842614,-450.0,0.00019567,2]
[360170294,1746589842623,-461.66259418,0.00019567,2]
[360170296,1746589842633,-450.0,0.00019567,2]
[360170298,1746589842643,-450.0,0.00019567,2]
[360170300,1746589842652,-452.70515665,0.00019567,2]
[360170302,1746589842661,-450.0,0.00019567,2]
[360170304,1746589842671,-454.26451904,0.00019567,2]
[360170305,1746589842682,-450.0,0.00019567,2]
[360170306,1746589842691,-485.32946615,0.00019567,2]
[360170307,1746589842701,-469.64772293,0.00019567,2]
[360170308,1746589842713,-450.0,0.00019567,2]
[360170309,1746589842723,-450.0,0.00019567,2]
[360170311,1746589842733,-500.21,0.00019567,2]
[360170313,1746589842744,-450.0,0.00019567,2]
[360170314,1746589842754,-450.0,0.00019567,2]
[360170315,1746589842764,-450.0,0.00019567,2]
[360170316,1746589842774,-450.0,0.00019567,2]
[360170317,1746589842785,-450.0,0.00019567,2]
[360170318,1746589842796,-784.19,0.00019567,2]
[360170319,1746589842806,-477.54786863,0.00019567,2]
[360170320,1746589842816,-450.0,0.00019567,2]
[360170321,1746589842826,-450.0,0.00019567,2]
[360170322,1746589842836,-473.4971697,0.00019567,2]
[360170323,1746589842845,-450.0,0.00019567,2]
[360170324,1746589842855,-450.0,0.00019567,2]
[360170325,1746589842865,-450.0,0.00019567,2]
[360170326,1746589842875,-411.44511955,0.00019567,2]
[360170327,1746589842885,-450.0,0.00019567,2]
[360170328,1746589842895,-824.67,0.00019567,2]
[360170329,1746589842904,-499.27,0.00019567,2]
[360170330,1746589842914,-450.0,0.00019567,2]
[360170331,1746589842923,-450.0,0.00019567,2]
[360170332,1746589842932,-450.0,0.00019567,2]
[360170333,1746589842942,-450.0,0.00019567,2]
[360170334,1746589842952,-450.0,0.00019567,2]
[360170335,1746589842962,-450.0,0.00019567,2]
[360170336,1746589842971,-450.0,0.00019567,2]
[360170337,1746589842981,-450.0,0.00019567,2]
[360170338,1746589842991,-450.0,0.00019567,2]
[360170339,1746589843000,-450.0,0.00019567,2]
[360170340,1746589843010,-450.0,0.00019567,2]
[360170341,1746589843020,-450.0,0.00019567,2]
[360170342,1746589843029,-450.0,0.00019567,2]
[360170343,1746589843039,-450.0,0.00019567,2]
[360170344,1746589843048,-5501.89160627,0.00019583,2]
[360170345,1746589843058,-253.0,0.000196,2]
[360170346,1746589843067,-600.0,0.000196,7]
[360170347,1746589843076,-361.73787043,0.00019601,2]
[360170348,1746589843086,-1010.13,0.00019601,2]
[360170349,1746589843095,-1806.27,0.00019601,2]
[360170350,1746589843105,-450.0,0.00019601,2]
[360170351,1746589843114,-450.0,0.00019601,2]
[360170352,1746589843124,-890.24,0.00019601,2]
[360170354,1746589843133,-543.59,0.00019601,2]
[360170356,1746589843142,-450.0,0.00019601,2]
[360170357,1746589843151,-450.0,0.00019601,2]
[360170358,1746589843160,-450.0,0.00019601,2]
[360170359,1746589843169,-1000.27,0.00019601,2]
[360170360,1746589843179,-964.63,0.00019601,2]
[360170361,1746589843188,-450.0,0.00019601,2]
[360170362,1746589843197,-450.0,0.00019601,2]
[360170363,1746589843206,-455.66,0.00019601,2]
[360170364,1746589843215,-450.0,0.00019601,2]
[360170365,1746589843225,-480.86,0.00019601,2]
[360170366,1746589843283,-450.0,0.00019601,2]
[360170367,1746589843293,-450.0,0.00019601,2]
[360170368,1746589843303,-450.0,0.00019601,2]
[360170369,1746589843312,-450.0,0.00019601,2]
[360170370,1746589843322,-1955.98,0.00019601,2]
[360170371,1746589843331,-450.0,0.00019601,2]
[360170372,1746589843341,-450.0,0.00019601,2]
[360170373,1746589843351,-450.0,0.00019601,2]
[360170374,1746589843360,-1126.76,0.00019601,2]
[360170375,1746589843369,-151.0,0.0001961,2]
[360170376,1746589843383,-4535.48065041,0.00019611,2]
[360170377,1746589843392,-5501.89160627,0.00019622,2]
[360170378,1746589843401,-383.72,0.00019632,2]
[360170379,1746589843410,-450.0,0.0001964,2]
[360170380,1746589843420,-470.0,0.0001964,2]
[360170381,1746589843429,-450.0,0.00019641,2]
[360170382,1746589843439,-450.0,0.00019641,2]
[360170383,1746589843449,-453.80387379,0.00019641,2]
[360170384,1746589843458,-450.0,0.00019641,2]
[360170385,1746589843467,-450.0,0.00019641,2]
[360170386,1746589843476,-450.0,0.00019641,2]
[360170387,1746589843485,-450.0,0.00019641,2]
[360170388,1746589843494,-250.0,0.00019641,2]
[360170389,1746589843503,-450.0,0.00019641,2]
[360170390,1746589843512,-450.0,0.00019641,2]
[360170391,1746589843522,-450.0,0.00019641,2]
[360170392,1746589843531,-450.0,0.00019641,2]
[360170393,1746589843540,-490.0,0.00019641,2]
[360170394,1746589843549,-492.57182336,0.00019641,2]
[360170395,1746589843559,-450.0,0.00019641,2]
[360170396,1746589843568,-450.0,0.00019641,2]
[360170397,1746589843577,-450.0,0.00019641,2]
[360170398,1746589843587,-450.0,0.00019641,2]
[360170399,1746589843596,-450.0,0.00019641,2]
[360170400,1746589843606,-450.0,0.00019641,2]
[360170401,1746589843615,-258.23,0.00019641,2]
[360170402,1746589843624,-450.0,0.00019641,2]
[360170403,1746589843633,-501.73,0.00019641,2]
[360170404,1746589843643,-450.0,0.00019641,2]
[360170405,1746589843652,-450.0,0.00019641,2]
[360170406,1746589843661,-450.0,0.00019641,2]
[360170407,1746589843671,-547.43514998,0.00019641,2]
[360170408,1746589843680,-450.0,0.00019641,2]
[360170409,1746589843689,-930.37,0.00019641,2]
[360170410,1746589843699,-450.0,0.00019641,2]